fUST/lending_fUST_20250625
["ID","MTS","AMOUNT","RATE_DAILY","PERIOD"]
[367580262,1750865438572,-309.28424518,0.00016426,2]
[367580264,1750865438581,-500.0,0.00016426,2]
[367580266,1750865438591,-500.0,0.00016426,2]
[367580268,1750865438600,-500.0,0.00016426,2]
[367580270,1750865438609,-500.0,0.00016426,2]
[367580272,1750865438618,-500.0,0.00016426,2]
[367580274,1750865438627,-500.0,0.00016426,2]
[367580276,1750865438637,-500.0,0.00016426,2]
[367580278,1750865438646,-500.0,0.00016426,2]
[367580280,1750865438655,-500.0,0.00016426,2]
[367580282,1750865438673,-500.0,0.00016426,2]
[367580285,1750865438685,-500.0,0.00016426,2]
[367580287,1750865438694,-500.0,0.00016426,2]
[367580289,1750865438704,-500.0,0.00016426,2]
[367580291,1750865438714,-500.0,0.00016426,2]
[367580293,1750865438724,-500.0,0.00016426,2]
[367580295,1750865438734,-500.0,0.00016426,2]
[367580297,1750865438744,-99780.6733587,0.00016427,2]
[367580299,1750865438753,-50000.0,0.00016429,2]
[367580301,1750865438763,-460.0,0.00016438,2]
[367580303,1750865438772,-460.0,0.00016438,2]
[367580305,1750865438782,-460.0,0.00016438,2]
[367580307,1750865438792,-460.0,0.00016438,2]
[367580309,1750865438801,-460.0,0.00016438,2]
[367580311,1750865438811,-460.0,0.00016438,2]
[367580313,1750865438821,-460.0,0.00016438,2]
[367580316,1750865438830,-546.21,0.00016438,2]
[367580319,1750865438840,-460.0,0.00016438,2]
[367580321,1750865438850,-460.0,0.00016438,2]
[367580324,1750865438860,-460.0,0.00016438,2]
[367580326,1750865438870,-748.44,0.00016438,2]
[367580328,1750865438879,-575.46706523,0.00016438,2]
[367580329,1750865438889,-460.0,0.00016438,2]
[367580331,1750865438899,-460.0,0.00016438,2]
[367580333,1750865438909,-460.0,0.00016438,2]
[367580336,1750865438919,-460.0,0.00016438,2]
[367580338,1750865438929,-159.26821546,0.00016438,2]
[367580340,1750865438938,-384.32269552,0.00016438,2]
[367580342,1750865438947,-460.0,0.00016438,2]
[367580344,1750865438956,-250.82848943,0.00016438,2]
[367580346,1750865438966,-508.83,0.00016438,2]
[367580347,1750865438976,-460.0,0.00016438,2]
[367580349,1750865438985,-460.0,0.00016438,2]
[367580351,1750865438996,-460.0,0.00016438,2]
[367580354,1750865439005,-586.15280017,0.00016438,2]
[367580356,1750865439014,-460.0,0.00016438,2]
[367580358,1750865439024,-481.96569241,0.00016438,2]
[367580360,1750865439034,-272.80937363,0.00016438,2]
[367580362,1750865439043,-460.0,0.00016438,2]
[367580364,1750865439052,-460.0,0.00016438,2]
[367580366,1750865439062,-460.0,0.00016438,2]
[367580368,1750865439071,-460.0,0.00016438,2]
[367580370,1750865439080,-459.0,0.00016438,2]
[367580372,1750865439094,-460.0,0.00016438,2]
[367580374,1750865439103,-460.0,0.00016438,2]
[367580376,1750865439112,-460.0,0.00016438,2]
[367580378,1750865439121,-460.0,0.00016438,2]
[367580380,1750865439131,-460.0,0.00016438,2]
[367580382,1750865439141,-460.0,0.00016438,2]
[367580384,1750865439150,-460.0,0.00016438,2]
[367580386,1750865439160,-460.0,0.00016438,2]
[367580388,1750865439169,-460.0,0.00016438,2]
[367580390,1750865439179,-460.0,0.00016438,2]
[367580392,1750865439188,-460.0,0.00016438,2]
[367580394,1750865439197,-344.16786032,0.00016438,2]
[367580396,1750865439207,-460.0,0.00016438,2]
[367580398,1750865439217,-460.0,0.00016438,2]
[367580400,1750865439227,-340.29529696,0.00016438,2]
[367580402,1750865439236,-460.0,0.00016438,2]
[367580404,1750865439246,-460.0,0.00016438,2]
[367580406,1750865439256,-246.36610706,0.00016438,2]
[367580408,1750865439265,-460.0,0.00016438,2]
[367580410,1750865439275,-459.44050273,0.00016438,2]
[367580413,1750865439287,-460.0,0.00016438,2]
[367580415,1750865439297,-460.0,0.00016438,2]
[367580417,1750865439306,-460.0,0.00016438,2]
[367580419,1750865439316,-460.0,0.00016438,2]
[367580421,1750865439325,-461.87934288,0.00016438,2]
[367580423,1750865439334,-500.0,0.00016438,2]
[367580425,1750865439344,-500.0,0.00016438,2]
[367580427,1750865439354,-371.48952035,0.00016438,2]
[367580429,1750865439363,-460.0,0.00016438,2]
[367580431,1750865439373,-460.0,0.00016438,2]
[367580433,1750865439383,-500.0,0.00016438,2]
[367580435,1750865439392,-500.0,0.00016438,2]
[367580437,1750865439402,-500.0,0.00016438,2]
[367580439,1750865439411,-500.0,0.00016438,2]
[367580441,1750865439420,-500.0,0.00016438,2]
[367580443,1750865439430,-460.0,0.00016438,2]
[367580445,1750865439439,-460.0,0.00016438,2]
[367580447,1750865439449,-460.0,0.00016438,2]
[367580449,1750865439458,-488.37,0.00016438,2]
[367580451,1750865439467,-460.0,0.00016438,2]
[367580453,1750865439477,-460.0,0.00016438,2]
[367580455,1750865439488,-460.0,0.00016438,2]
[367580457,1750865439498,-460.0,0.00016438,2]
[367580459,1750865439507,-1548.68,0.00016438,2]
[367580461,1750865439517,-922.49,0.00016438,2]
[367580463,1750865439527,-1254.97,0.00016438,2]
[367580465,1750865439536,-476.17,0.00016438,2]
[367580468,1750865439546,-460.0,0.00016438,2]
[367580470,1750865439556,-460.0,0.00016438,2]
[367580472,1750865439565,-224.81,0.00016438,2]
[367580474,1750865439577,-460.0,0.00016438,2]
[367580476,1750865439586,-460.80732492,0.00016438,2]
[367580478,1750865439595,-460.0,0.00016438,2]
[367580480,1750865439605,-460.0,0.00016438,2]
[367580483,1750865439615,-465.76536114,0.00016438,2]
[367580486,1750865439624,-460.0,0.00016438,2]
[367580488,1750865439633,-460.0,0.00016438,2]
[367580490,1750865439643,-500.0,0.00016438,2]
[367580493,1750865439653,-460.0,0.00016438,2]
[367580494,1750865439662,-460.0,0.00016438,2]
[367580497,1750865439672,-460.0,0.00016438,2]
[367580498,1750865439681,-474.80013258,0.00016438,2]
[367580500,1750865439691,-460.0,0.00016438,2]
[367580503,1750865439700,-460.0,0.00016438,2]
[367580505,1750865439710,-460.0,0.00016438,2]
[367580508,1750865439719,-460.0,0.00016438,2]
[367580511,1750865439730,-460.0,0.00016438,2]
[367580513,1750865439742,-460.0,0.00016438,2]
[367580515,1750865439753,-798.75,0.00016438,2]
[367580518,1750865439762,-460.0,0.00016438,2]
[367580520,1750865439772,-460.0,0.00016438,2]
[367580523,1750865439781,-460.0,0.00016438,2]
[367580525,1750865439791,-460.0,0.00016438,2]
[367580527,1750865439800,-460.0,0.00016438,2]
[367580529,1750865439810,-460.0,0.00016438,2]
[367580531,1750865439819,-812.26,0.00016438,2]
[367580533,1750865439829,-460.0,0.00016438,2]
[367580535,1750865439838,-460.0,0.00016438,2]
[367580537,1750865439848,-460.0,0.00016438,2]
[367580539,1750865439857,-460.0,0.00016438,2]
[367580541,1750865439867,-460.0,0.00016438,2]
[367580543,1750865439876,-460.0,0.00016438,2]
[367580545,1750865439885,-5630.9,0.00016438,2]
[367580547,1750865439894,-500.0,0.00016438,2]
[367580549,1750865439904,-500.0,0.00016438,2]
[367580551,1750865439913,-500.0,0.00016438,2]
[367580553,1750865439923,-460.0,0.00016438,2]
[367580555,1750865439932,-500.0,0.00016438,2]
[367580557,1750865439942,-241.91956527,0.00016438,2]
[367580559,1750865439951,-460.0,0.00016438,2]
[367580561,1750865439961,-460.0,0.00016438,2]
[367580563,1750865439970,-460.0,0.00016438,2]
[367580565,1750865439981,-721.07,0.00016438,2]
[367580567,1750865439990,-560.78,0.00016438,2]
[367580569,1750865440000,-443.47229407,0.00016438,2]
[367580571,1750865440010,-460.0,0.00016438,2]
[367580573,1750865440019,-460.0,0.00016438,2]
[367580575,1750865440029,-460.0,0.00016438,2]
[367580577,1750865440038,-460.0,0.00016438,2]
[367580579,1750865440047,-460.0,0.00016438,2]
[367580581,1750865440057,-572.72,0.00016438,2]
[367580583,1750865440066,-488.02,0.00016438,2]
[367580585,1750865440075,-460.0,0.00016438,2]
[367580587,1750865440086,-669.72,0.00016438,2]
[367580589,1750865440095,-460.0,0.00016438,2]
[367580591,1750865440105,-460.0,0.00016438,2]
[367580593,1750865440114,-5057.47,0.00016438,2]
[367580595,1750865440124,-1322.94,0.00016438,2]
[367580597,1750865440134,-460.0,0.00016438,2]
[367580599,1750865440143,-978.97,0.00016438,2]
[367580601,1750865440153,-460.0,0.00016438,2]
[367580603,1750865440162,-504.54956369,0.00016438,2]
[367580605,1750865440172,-7603.59,0.00016438,2]
[367580607,1750865440181,-460.0,0.00016438,2]
[367580609,1750865440191,-500.0,0.00016438,2]
[367580611,1750865440200,-588.0,0.00016438,2]
[367580613,1750865440209,-462.42619323,0.00016438,2]
[367580615,1750865440219,-2334.53,0.00016438,2]
[367580617,1750865440228,-460.0,0.00016438,2]
[367580619,1750865440237,-460.0,0.00016438,2]
[367580621,1750865440249,-460.0,0.00016438,2]
[367580623,1750865440258,-460.0,0.00016438,2]
[367580625,1750865440268,-460.0,0.00016438,2]
[367580628,1750865440277,-3446.56,0.00016438,2]
[367580631,1750865440287,-460.0,0.00016438,2]
[367580635,1750865440296,-460.0,0.00016438,2]
[367580639,1750865440306,-460.0,0.00016438,2]
[367580643,1750865440316,-723.02,0.00016438,2]
[367580646,1750865440326,-460.0,0.00016438,2]
[367580650,1750865440335,-652.7,0.00016438,2]
[367580654,1750865440345,-460.0,0.00016438,2]
[367580657,1750865440355,-460.0,0.00016438,2]
[367580659,1750865440365,-460.0,0.00016438,2]
[367580663,1750865440375,-460.0,0.00016438,2]
[367580665,1750865440384,-1677.02,0.00016438,2]
[367580668,1750865440394,-460.0,0.00016438,2]
[367580670,1750865440403,-460.0,0.00016438,2]
[367580672,1750865440413,-460.0,0.00016438,2]
[367580674,1750865440422,-460.0,0.00016438,2]
[367580675,1750865440431,-460.0,0.00016438,2]
[367580677,1750865440443,-460.94652339,0.00016438,2]
[367580680,1750865440453,-229.1072914,0.00016438,2]
[367580682,1750865440463,-460.0,0.00016438,2]
[367580684,1750865440472,-460.0,0.00016438,2]
[367580686,1750865440482,-460.0,0.00016438,2]
[367580688,1750865440492,-460.0,0.00016438,2]
[367580690,1750865440502,-460.0,0.00016438,2]
[367580692,1750865440512,-460.0,0.00016438,2]
[367580694,1750865440521,-1913.91,0.00016438,2]
[367580696,1750865440530,-425.17727126,0.00016438,2]
[367580698,1750865440540,-460.0,0.00016438,2]
[367580700,1750865440550,-1020.84,0.00016438,2]
[367580702,1750865440559,-460.0,0.00016438,2]
[367580704,1750865440570,-9083.59,0.00016438,2]
[367580706,1750865440579,-161.39226553,0.00016438,2]
[367580708,1750865440588,-460.0,0.00016438,2]
[367580710,1750865440598,-460.0,0.00016438,2]
[367580712,1750865440608,-460.0,0.00016438,2]
[367580714,1750865440618,-460.0,0.00016438,2]
[367580717,1750865440628,-460.0,0.00016438,2]
[367580719,1750865440638,-460.0,0.00016438,2]
[367580721,1750865440647,-460.0,0.00016438,2]
[367580723,1750865440657,-1941.87,0.00016438,2]
[367580725,1750865440666,-1677.32,0.00016438,2]
[367580727,1750865440675,-460.0,0.00016438,2]
[367580729,1750865440684,-1866.99,0.00016438,2]
[367580731,1750865440694,-460.0,0.00016438,2]
[367580749,1750865440854,-460.0,0.00016438,2]
[367580751,1750865440865,-1011.97,0.00016438,2]
[367580753,1750865440874,-9531.72,0.00016438,2]
[367580755,1750865440883,-9341.39,0.00016438,2]
[367580757,1750865440893,-460.0,0.00016438,2]
[367580759,1750865440902,-460.0,0.00016438,2]
[367580761,1750865440912,-460.0,0.00016438,2]
[367580763,1750865440922,-460.0,0.00016438,2]
[367580765,1750865440931,-460.0,0.00016438,2]
[367580767,1750865440940,-460.0,0.00016438,2]
[367580770,1750865440950,-460.0,0.00016438,2]
[367580772,1750865440960,-1512.77,0.00016438,2]
[367580774,1750865440969,-460.0,0.00016438,2]
[367580775,1750865440979,-542.82,0.00016438,2]
[367580778,1750865440988,-460.0,0.00016438,2]
[367580779,1750865440998,-460.0,0.00016438,2]
[367580781,1750865441007,-460.0,0.00016438,2]
[367580783,1750865441016,-460.0,0.00016438,2]
[367580785,1750865441025,-460.0,0.00016438,2]
[367580787,1750865441034,-676.56,0.00016438,2]
[367580789,1750865441043,-460.0,0.00016438,2]
[367580791,1750865441052,-460.0,0.00016438,2]
[367580793,1750865441061,-460.0,0.00016438,2]
[367580795,1750865441070,-532.64,0.00016438,2]
[367580797,1750865441080,-460.0,0.00016438,2]
[367580799,1750865441092,-460.0,0.00016438,2]
[367580801,1750865441101,-5778.95,0.00016438,2]
[367580803,1750865441110,-438.0967917,0.00016438,2]
[367580804,1750865441119,-460.0,0.00016438,2]
[367580805,1750865441128,-5059.17,0.00016438,2]
[367580806,1750865441137,-460.0,0.00016438,2]
[367580807,1750865441146,-460.0,0.00016438,2]
[367580809,1750865441156,-484.58,0.00016438,2]
[367580811,1750865441165,-460.0,0.00016438,2]
[367580813,1750865441174,-1742.31,0.00016438,2]
[367580815,1750865441183,-460.0,0.00016438,2]
[367580817,1750865441192,-460.0,0.00016438,2]
[367580819,1750865441201,-460.0,0.00016438,2]
[367580821,1750865441210,-460.0,0.00016438,2]
[367580823,1750865441219,-1449.64,0.00016438,2]
[367580825,1750865441228,-1542.05,0.00016438,2]
[367580827,1750865441237,-460.0,0.00016438,2]
[367580829,1750865441246,-460.0,0.00016438,2]
[367580830,1750865441256,-460.0,0.00016438,2]
[367580831,1750865441265,-460.0,0.00016438,2]
[367580833,1750865441274,-370.85,0.00016438,2]
[367580835,1750865441283,-460.0,0.00016438,2]
[367580837,1750865441292,-460.0,0.00016438,2]
[367580839,1750865441301,-460.0,0.00016438,2]
[367580841,1750865441310,-460.0,0.00016438,2]
[367580843,1750865441319,-460.0,0.00016438,2]
[367580845,1750865441328,-1831.63,0.00016438,2]
[367580847,1750865441337,-1793.94,0.00016438,2]
[367580849,1750865441346,-460.0,0.00016438,2]
[367580851,1750865441355,-460.0,0.00016438,2]
[367580853,1750865441364,-476.83,0.00016438,2]
[367580855,1750865441374,-460.0,0.00016438,2]
[367580857,1750865441383,-460.0,0.00016438,2]
[367580859,1750865441391,-460.0,0.00016438,2]
[367580861,1750865441401,-460.0,0.00016438,2]
[367580863,1750865441411,-460.0,0.00016438,2]
[367580864,1750865441421,-460.0,0.00016438,2]
[367580866,1750865441431,-460.0,0.00016438,2]
[367580868,1750865441441,-1385.67,0.00016438,2]
[367580871,1750865441451,-460.0,0.00016438,2]
[367580872,1750865441462,-495.35,0.00016438,2]
[367580874,1750865441471,-2039.65,0.00016438,2]
[367580876,1750865441479,-516.34,0.00016438,2]
[367580879,1750865441489,-460.0,0.00016438,2]
[367580880,1750865441499,-460.0,0.00016438,2]
[367580882,1750865441508,-865.22,0.00016438,2]
[367580883,1750865441518,-629.51,0.00016438,2]
[367580884,1750865441527,-460.0,0.00016438,2]
[367580885,1750865441537,-460.0,0.00016438,2]
[367580887,1750865441546,-1513.91,0.00016438,2]
[367580889,1750865441555,-460.0,0.00016438,2]
[367580891,1750865441564,-460.0,0.00016438,2]
[367580893,1750865441574,-662.51,0.00016438,2]
[367580895,1750865441583,-460.0,0.00016438,2]
[367580897,1750865441593,-460.0,0.00016438,2]
[367580899,1750865441603,-460.0,0.00016438,2]
[367580901,1750865441612,-460.0,0.00016438,2]
[367580903,1750865441622,-619.7,0.00016438,2]
[367580905,1750865441631,-503.28,0.00016438,2]
[367580907,1750865441640,-460.0,0.00016438,2]
[367580909,1750865441649,-460.0,0.00016438,2]
[367580911,1750865441658,-460.0,0.00016438,2]
[367580913,1750865441667,-460.0,0.00016438,2]
[367580915,1750865441677,-168.12,0.00016438,2]
[367580917,1750865441686,-460.0,0.00016438,2]
[367580918,1750865441695,-460.0,0.00016438,2]
[367580919,1750865441705,-460.0,0.00016438,2]
[367580920,1750865441714,-460.0,0.00016438,2]
[367580921,1750865441723,-460.0,0.00016438,2]
[367580922,1750865441733,-460.0,0.00016438,2]
[367580923,1750865441742,-431.14,0.00016438,2]
[367580924,1750865441751,-813.69,0.00016438,2]
[367580925,1750865441760,-464.11284791,0.00016438,2]
[367580927,1750865441769,-474.2,0.00016438,2]
[367580929,1750865441778,-460.0,0.00016438,2]
[367580931,1750865441787,-460.0,0.00016438,2]
[367580933,1750865441796,-5802.33,0.00016438,2]
[367580935,1750865441806,-1720.62,0.00016438,2]
[367580937,1750865441815,-925.1,0.00016438,2]
[367580939,1750865441824,-460.0,0.00016438,2]
[367580941,1750865441834,-460.0,0.00016438,2]
[367580943,1750865441843,-1268.29,0.00016438,2]
[367580945,1750865441853,-460.0,0.00016438,2]
[367580947,1750865441862,-460.0,0.00016438,2]
[367580949,1750865441872,-482.42731147,0.00016438,2]
[367580951,1750865441881,-2538.55,0.00016438,2]
[367580953,1750865441891,-680.21,0.00016438,2]
[367580955,1750865441900,-460.0,0.00016438,2]
[367580957,1750865441909,-500.0,0.00016438,2]
[367580959,1750865441918,-500.0,0.00016438,2]
[367580961,1750865441927,-348.4434946,0.00016438,2]
[367580963,1750865441938,-500.0,0.00016438,2]
[367580965,1750865441947,-500.0,0.00016438,2]
[367580967,1750865441956,-500.0,0.00016438,2]
[367580969,1750865441966,-500.0,0.00016438,2]
[367580971,1750865441975,-500.0,0.00016438,2]
[367580973,1750865441984,-1465.72,0.00016438,2]
[367580975,1750865441994,-500.0,0.00016438,2]
[367580977,1750865442004,-500.0,0.00016438,2]
[367580979,1750865442013,-500.0,0.00016438,2]
[367580981,1750865442023,-500.0,0.00016438,2]
[367580983,1750865442033,-500.0,0.00016438,2]
[367580985,1750865442042,-500.0,0.00016438,2]
[367580987,1750865442052,-500.0,0.00016438,2]
[367580989,1750865442061,-500.0,0.00016438,2]
[367580991,1750865442071,-314.81964104,0.00016438,2]
[367580993,1750865442080,-500.0,0.00016438,2]
[367580995,1750865442093,-500.0,0.00016438,2]
[367580997,1750865442103,-500.0,0.00016438,2]
[367580999,1750865442113,-500.0,0.00016438,2]
[367581001,1750865442123,-500.0,0.00016438,2]
[367581003,1750865442132,-500.0,0.00016438,2]
[367581005,1750865442141,-500.0,0.00016438,2]
[367581007,1750865442150,-500.0,0.00016438,2]
[367581009,1750865442160,-500.0,0.00016438,2]
[367581011,1750865442170,-500.0,0.00016438,2]
[367581013,1750865442179,-500.0,0.00016438,2]
[367581015,1750865442190,-500.0,0.00016438,2]
[367581017,1750865442199,-500.0,0.00016438,2]
[367581019,1750865442209,-500.0,0.00016438,2]
[367581021,1750865442218,-500.0,0.00016439,2]
[367581023,1750865442227,-500.0,0.00016439,2]
[367581025,1750865442236,-210.54856,0.0001644,2]
[367581027,1750865442246,-460.0,0.0001644,2]
[367581030,1750865442256,-460.0,0.0001644,2]
[367581031,1750865442265,-460.0,0.0001644,2]
[367581034,1750865442275,-460.0,0.0001644,2]
[367581035,1750865442284,-460.0,0.0001644,2]
[367581038,1750865442293,-460.0,0.0001644,2]
[367581039,1750865442303,-500.0,0.0001644,2]
[367581041,1750865442313,-1442.84,0.0001644,2]
[367581043,1750865442322,-1912.47,0.0001644,2]
[367581045,1750865442331,-1123.09,0.0001644,2]
[367581048,1750865442341,-2998.92,0.0001644,2]
[367581050,1750865442350,-460.0,0.0001644,2]
[367581051,1750865442360,-460.0,0.0001644,2]
[367581052,1750865442369,-460.0,0.0001644,2]
[367581053,1750865442378,-460.0,0.0001644,2]
[367581054,1750865442387,-1118.57,0.0001644,2]
[367581055,1750865442397,-460.0,0.0001644,2]
[367581056,1750865442406,-586.05,0.0001644,2]
[367581057,1750865442416,-460.0,0.0001644,2]
[367581058,1750865442426,-460.0,0.0001644,2]
[367581059,1750865442435,-460.0,0.0001644,2]
[367581060,1750865442445,-460.0,0.0001644,2]
[367581061,1750865442455,-460.0,0.0001644,2]
[367581062,1750865442464,-460.0,0.0001644,2]
[367581063,1750865442473,-460.0,0.0001644,2]
[367581064,1750865442483,-460.0,0.0001644,2]
[367581065,1750865442492,-176.61821101,0.00016443,2]
[367581066,1750865442501,-460.0,0.00016443,2]
[367581067,1750865442512,-379.50228677,0.00016443,2]
[367581068,1750865442522,-470.23712706,0.00016443,2]
[367581069,1750865442531,-460.0,0.00016443,2]
[367581070,1750865442540,-460.0,0.00016443,2]
[367581072,1750865442549,-460.0,0.00016443,2]
[367581073,1750865442558,-151.0,0.000166,2]
[367581075,1750865442567,-5000.0,0.00016637,2]
[367581077,1750865442576,-500.0,0.00016637,2]
[367581079,1750865442585,-500.0,0.00016637,2]
[367581082,1750865442594,-674.56203062,0.00016637,2]
[367581084,1750865442603,-207.4,0.00016637,2]
[367581087,1750865442612,-393.07884262,0.00016712,2]
[367581090,1750865442621,-460.0,0.00016712,2]
[367581093,1750865442631,-460.0,0.00016712,2]
[367581096,1750865442640,-460.0,0.00016712,2]
[367581098,1750865442649,-546.21,0.00016712,2]
[367581100,1750865442658,-460.0,0.00016712,2]
[367581102,1750865442667,-460.0,0.00016712,2]
[367581104,1750865442676,-460.0,0.00016712,2]
[367581106,1750865442686,-748.44,0.00016712,2]
[367581107,1750865442695,-460.0,0.00016712,2]
[367581108,1750865442705,-460.0,0.00016712,2]
[367581109,1750865442715,-250.3539011,0.00016712,2]
[367581110,1750865442724,-460.0,0.00016712,2]
[367581111,1750865442733,-460.0,0.00016712,2]
[367581112,1750865442742,-460.0,0.00016712,2]
[367581113,1750865442752,-460.0,0.00016712,2]
[367581114,1750865442762,-537.85861542,0.00016712,2]
[367581115,1750865442771,-460.0,0.00016712,2]
[367581116,1750865442780,-460.0,0.00016712,2]
[367581117,1750865442790,-460.0,0.00016712,2]
[367581118,1750865442799,-460.0,0.00016712,2]
[367581119,1750865442809,-460.0,0.00016712,2]
[367581120,1750865442818,-460.0,0.00016712,2]
[367581121,1750865442828,-463.65,0.00016712,2]
[367581122,1750865442837,-460.0,0.00016712,2]
[367581123,1750865442847,-460.0,0.00016712,2]
[367581124,1750865442856,-460.0,0.00016712,2]
[367581125,1750865442866,-460.0,0.00016712,2]
[367581126,1750865442875,-488.37,0.00016712,2]
[367581127,1750865442885,-460.0,0.00016712,2]
[367581128,1750865442894,-460.0,0.00016712,2]
[367581129,1750865442904,-460.0,0.00016712,2]
[367581130,1750865442914,-460.0,0.00016712,2]
[367581131,1750865442923,-460.0,0.00016712,2]
[367581132,1750865442932,-1548.68,0.00016712,2]
[367581133,1750865442941,-922.49,0.00016712,2]
[367581134,1750865442951,-1254.97,0.00016712,2]
[367581135,1750865442960,-476.17,0.00016712,2]
[367581136,1750865442970,-460.0,0.00016712,2]
[367581137,1750865442978,-460.0,0.00016712,2]
[367581138,1750865442987,-460.0,0.00016712,2]
[367581139,1750865442997,-461.24433483,0.00016712,2]
[367581140,1750865443008,-460.0,0.00016712,2]
[367581141,1750865443018,-467.82,0.00016712,2]
[367581142,1750865443027,-460.0,0.00016712,2]
[367581143,1750865443036,-460.0,0.00016712,2]
[367581144,1750865443045,-460.0,0.00016712,2]
[367581145,1750865443054,-460.0,0.00016712,2]
[367581147,1750865443064,-460.0,0.00016712,2]
[367581149,1750865443073,-460.0,0.00016712,2]
[367581151,1750865443085,-460.0,0.00016712,2]
[367581153,1750865443095,-798.75,0.00016712,2]
[367581155,1750865443104,-460.0,0.00016712,2]
[367581157,1750865443114,-460.0,0.00016712,2]
[367581159,1750865443124,-460.0,0.00016712,2]
[367581161,1750865443133,-460.0,0.00016712,2]
[367581163,1750865443142,-560.75797923,0.00016712,2]
[367581165,1750865443151,-460.0,0.00016712,2]
[367581167,1750865443160,-812.26,0.00016712,2]
[367581168,1750865443170,-460.0,0.00016712,2]
[367581169,1750865443179,-460.0,0.00016712,2]
[367581170,1750865443188,-460.0,0.00016712,2]
[367581171,1750865443197,-460.0,0.00016712,2]
[367581172,1750865443206,-460.0,0.00016712,2]
[367581173,1750865443216,-460.0,0.00016712,2]
[367581174,1750865443225,-5630.9,0.00016712,2]
[367581175,1750865443234,-460.0,0.00016712,2]
[367581176,1750865443243,-460.0,0.00016712,2]
[367581177,1750865443252,-439.0,0.00016712,2]
[367581178,1750865443261,-721.07,0.00016712,2]
[367581179,1750865443270,-460.0,0.00016712,2]
[367581180,1750865443279,-560.78,0.00016712,2]
[367581181,1750865443289,-460.0,0.00016712,2]
[367581182,1750865443298,-460.0,0.00016712,2]
[367581183,1750865443307,-460.0,0.00016712,2]
[367581184,1750865443318,-460.0,0.00016712,2]
[367581185,1750865443327,-572.72,0.00016712,2]
[367581186,1750865443336,-488.02,0.00016712,2]
[367581187,1750865443345,-460.0,0.00016712,2]
[367581188,1750865443354,-669.72,0.00016712,2]
[367581189,1750865443363,-460.0,0.00016712,2]
[367581190,1750865443373,-5057.47,0.00016712,2]
[367581191,1750865443382,-1322.94,0.00016712,2]
[367581192,1750865443391,-460.0,0.00016712,2]
[367581193,1750865443400,-978.97,0.00016712,2]
[367581195,1750865443409,-460.0,0.00016712,2]
[367581197,1750865443418,-7603.59,0.00016712,2]
[367581199,1750865443427,-500.0,0.00016712,2]
[367581201,1750865443436,-588.0,0.00016712,2]
[367581203,1750865443445,-360.0,0.00016712,2]
[367581205,1750865443454,-2334.53,0.00016712,2]
[367581206,1750865443463,-460.0,0.00016712,2]
[367581207,1750865443472,-460.0,0.00016712,2]